Cogmind - Beta 10 @@@ ROGUE MODE // 2020.09.15 @ 17:37:06 Player: Kapz Result: Destroyed by G-34 Mercenary with Small Laser Performance ------------- Evolutions (1) 500 Regions Visited (3) 600 Robots Destroyed (19) 95 Value Destroyed (523) 523 Prototype IDs (0) 0 Alien Tech Used (0) 0 Bonus (0) 0 TOTAL SCORE: 1718 Bonus ------- None Cogmind --------- Core Integrity 0/400 Matter 241/300 Energy 52/100 System Corruption 0% Temperature Cool (6) Movement Core (150) Ox2 Location -9/Materials Parts ------- > --- POWER (2) -------- (None) > --- PROPULSION (2) --- (None) > --- UTILITY (2) ------ Medium Armor Plating > --- WEAPON (3) ------- (None) > --- INVENTORY (4) ---- Ion Engine Aluminum Leg Aluminum Leg Medium Armor Plating Peak State ------------ > --- POWER ------------ Ion Engine Light Ion Engine > --- PROPULSION ------- Aluminum Leg Aluminum Leg > --- UTILITY ---------- Seismic Analyzer Medium Armor Plating > --- WEAPON ----------- Assault Rifle Light Cannon Grenade Launcher > --- INVENTORY -------- Large Matter Pod Datajack [Rating: 10] Favorites ----------- Power Light Ion Engine Engine Light Ion Engine Propulsion Aluminum Leg Leg Aluminum Leg Hover Unit Improved Hover Unit Flight Unit Flight Unit Utility Large Matter Pod Storage Large Matter Pod Processor Seismic Analyzer Protection Medium Armor Plating Weapon Assault Rifle Energy Gun Medium Laser Ballistic Gun Assault Rifle Ballistic Cannon Light Cannon Launcher Grenade Launcher Special Melee Weapon Datajack Build | -11 -10 -10 -9 ------- Run | Scr Mat Min Mat Slots Evolved 2 | . . . 2 Power 1 | . . . 1 Propulsion . | . . . . Utility . | . . . . Weapon 1 | . . . 1 Parts Attached 27 | 5 5 6 11 Power 4 | 1 1 1 1 Engine 4 | 1 1 1 1 Core . | . . . . Reactor . | . . . . Propulsion 9 | 2 1 3 3 Treads . | . . . . Leg 7 | 2 1 2 2 Wheel . | . . . . Hover 1 | . . . 1 Flight 1 | . . 1 . Utility 7 | . 1 2 4 Device . | . . . . Storage 2 | . 1 1 . Processor 1 | . . 1 . Hackware . | . . . . Protection 4 | . . . 4 Artifact . | . . . . Weapon 7 | 2 2 . 3 Energy Gun 1 | 1 . . . Energy Cannon . | . . . . Ballistic Gun 2 | 1 1 . . Ballistic Cannon 2 | . . . 2 Launcher 1 | . 1 . . Special Weapon . | . . . . Impact Weapon . | . . . . Slashing Weapon . | . . . . Piercing Weapon . | . . . . Special Melee Weapon 1 | . . . 1 Unidentified Prototypes . | . . . . Parts Lost 13 | . 2 . 11 Power 3 | . 1 . 2 Propulsion 3 | . . . 3 Utility 1 | . . . 1 Weapon 6 | . 1 . 5 Highest Loss Streak 7 | . 2 . 7 Average Slot Usage (%) 80 | . 82 92 60 Engine 13 | . 13 14 10 Leg 24 | . 28 27 14 Storage 11 | . 11 18 2 Processor 3 | . . 3 10 Energy Gun 2 | . 6 . . Ballistic Gun 14 | . 19 14 3 Ballistic Cannon 2 | . . . 9 Launcher 5 | . 1 14 2 Naked Turns . | . . . . Heaviest Build 23 | 6 11 16 23 Greatest Support 20 | 20 20 20 20 Greatest Overweight (x) 3 | . . 3 2 Average Overweight (x) . | . . . . Largest Inventory Capacity 4 | 4 4 4 4 Average Capacity 4 | 4 4 4 4 Most Carried 4 | 3 4 4 4 Average Carried 2 | 1 2 2 1 Final Capacity 4 | 4 4 4 4 Final Carried 4 | 3 4 2 4 Class Distribution -------------------- 93% | Mutant 6% | Derelict-Gunner Dominant Class ---------------- Mutant | -10/Materials Mutant | -10/Mines Mutant | -9/Materials Resources | -11 -10 -10 -9 ----------- Run | Scr Mat Min Mat Matter Collected 644 | 254 166 42 182 Remotely . | . . . . Salvage Created 517 | 75 215 44 183 Parts 31 | 6 11 2 12 Haulers Intercepted . | . . . . Recyclers Shooed . | . . . . Parts Field Recycled . | . . . . Retrieved Matter . | . . . . Parts Self-Destructed . | . . . . Prevented . | . . . . Kills | -11 -10 -10 -9 ------- Run | Scr Mat Min Mat Combat Hostiles Destroyed 15 | 1 6 2 6 Guns 5 | 1 4 . . Cannons 6 | . . . 6 AOE 4 | . 2 2 . Classes Destroyed 7 | 2 3 . 2 Worker 1 | 1 . . . Builder 1 | . 1 . . Recycler 1 | . 1 . . Operator 1 | . . . 1 Swarmer 3 | . 3 . . Grunt 11 | 1 3 2 5 Sentry 1 | . . . 1 Best Kill Streak 5 | 2 5 2 4 Combat Bots Only 4 | 1 3 2 4 Max Kills in Single Turn 2 | 1 2 1 1 Gunslinging . | . . . . Exploded 2 | . 2 1 . Melee . | . . . . Uniques/NPCs Destroyed . | . . . . Combat | -11 -10 -10 -9 -------- Run | Scr Mat Min Mat Damage Taken 1809 | 24 426 93 1266 Core 509 | . 79 29 401 Absorbed by Shields . | . . . . Core Remaining (%) 78 | 100 . 56 . Volleys Fired 77 | 4 38 6 29 Largest 3 | 2 2 2 3 Hottest 85 | 70 70 50 85 Shots Fired 117 | 8 59 10 40 Gun 76 | 8 58 4 6 Cannon 32 | . . . 32 Launcher 9 | . 1 6 2 Special . | . . . . Kinetic 92 | 4 46 4 38 Thermal 16 | 4 12 . . Explosive 9 | . 1 6 2 Electromagnetic . | . . . . Robot Hit Streak 12 | 5 6 8 12 Robot Miss Streak 5 | 1 5 1 2 Penetration Max . | . . . . Secondary Targets 1 | . 1 . . Max Gunslinging Chain 1 | . 1 . . Shots Hit Robots 73 | 6 29 8 30 Core Hits 33 | 3 13 6 11 Critical Hits . | . . . . Critical Kills . | . . . . Critical Parts Destroyed . | . . . . Melee Attacks . | . . . . Impact . | . . . . Slashing . | . . . . Piercing . | . . . . Sneak Attacks . | . . . . Combat Hostiles . | . . . . Follow-up Attacks . | . . . . Damage Inflicted 1338 | 65 537 174 562 Guns 582 | 65 417 37 63 Cannons 493 | . . . 493 Explosions 263 | . 120 137 6 Melee . | . . . . Ramming . | . . . . Kinetic 963 | 39 331 37 556 Thermal 112 | 26 86 . . Explosive 263 | . 120 137 6 Electromagnetic . | . . . . Impact . | . . . . Slashing . | . . . . Piercing . | . . . . Highest Corruption . | . . . . Average Corruption . | . . . . Corruption Purged . | . . . . Overload Shots . | . . . . Overflow Damage 29 | . 28 . 1 Projectiles . | . . . . Explosions 29 | . 28 . 1 Melee . | . . . . Knockbacks 2 | . . . 2 Impact . | . . . . Kinetic 2 | . . . 2 Secondary . | . . . . Self-Inflicted Damage 27 | . . . 27 Shots 1 | . . . 1 Rammed 1 | . . . 1 Targets Rammed 1 | . . . 1 Kicked . | . . . . Crushed . | . . . . Highest Temperature 312 | 62 312 5 69 Average Temperature 74 | 28 146 3 27 Received Heat Transfer 786 | 12 204 54 516 Effects 2 | . 2 . . Energy Bleed 2 | . 2 . . Siege Activations . | . . . . Robots Corrupted . | . . . . Combat Hostiles . | . . . . Parts Fried . | . . . . Impact Corruptions . | . . . . Robots Melted . | . . . . Combat Hostiles . | . . . . Parts Melted . | . . . . Heat Transferred 333 | 74 259 . . Parts Sabotaged . | . . . . Parts Stolen . | . . . . Parts Stripped . | . . . . Power Chain Reactions . | . . . . Missiles Intercepted . | . . . . Alert | -11 -10 -10 -9 ------- Run | Scr Mat Min Mat Peak Influence 138 | 25 119 59 138 Initial 22 | . 16 9 22 Average 39 | 4 33 50 54 Maximum Alert Level . | . . . . Low Security (%) 100 | 100 100 100 100 Level 1 . | . . . . Level 2 . | . . . . Level 3 . | . . . . Level 4 . | . . . . Level 5 . | . . . . High Security . | . . . . Max Security . | . . . . Squads Dispatched 4 | . . . 4 Investigation 1 | . . . 1 Extermination . | . . . . Reinforcement 3 | . . . 3 Assault . | . . . . Garrison . | . . . . Intercept . | . . . . Construction Impeded . | . . . . Haulers Reinforced . | . . . . Stealth | -11 -10 -10 -9 --------- Run | Scr Mat Min Mat Distress Signals 1 | . 1 . . Communications Jammed . | . . . . Distress Signals . | . . . . Times Spotted 31 | 1 7 2 21 Peak Tracking Total 8 | 1 3 2 8 Tactical Retreats . | . . . . Traps | -11 -10 -10 -9 ------- Run | Scr Mat Min Mat Traps Triggered . | . . . . Indirectly . | . . . . Trap Hack Attempts . | . . . . Triggered . | . . . . Disarmed . | . . . . Reprogrammed . | . . . . Reused . | . . . . Traps Extracted . | . . . . Installed . | . . . . Triggered . | . . . . Machines | -11 -10 -10 -9 ---------- Run | Scr Mat Min Mat Machines Disabled 2 | . 1 . 1 Max in Single Turn 1 | . 1 . 1 Machines Sabotaged . | . . . . Garrisons Compromised . | . . . . Overloaded Fab Kills . | . . . . Fab Network Shutdowns . | . . . . Hacking | -11 -10 -10 -9 --------- Run | Scr Mat Min Mat Machines Accessed 5 | . 4 . 1 Terminals 3 | . 3 . . Fabricators . | . . . . Repair Stations . | . . . . Recycling Units 2 | . 1 . 1 Scanalyzers . | . . . . Garrison Access . | . . . . Total Hacks 12 | . 7 . 5 Successful 7 | . 4 . 3 Failed 5 | . 3 . 2 Catastrophic . | . . . . Database Lockouts . | . . . . Manual . | . . . . Terminals 5 | . 5 . . Fabricators . | . . . . Repair Stations . | . . . . Recycling Units 7 | . 2 . 5 Scanalyzers . | . . . . Garrison Access . | . . . . Terminal Hacks 2 | . 2 . . Record 2 | . 2 . . Fabricator Hacks . | . . . . Repair Station Hacks . | . . . . Recycling Unit Hacks 5 | . 2 . 3 Recycle Component 2 | . 1 . 1 Process 1 | . . . 1 Retrieve Matter 2 | . 1 . 1 Scanalyzer . | . . . . Garrison Access Hacks . | . . . . Unauthorized Hacks . | . . . . Terminals . | . . . . Fabricators . | . . . . Repair Stations . | . . . . Recycling Units . | . . . . Scanalyzers . | . . . . Garrison Access . | . . . . Data Cores Recovered . | . . . . Used . | . . . . Hacking Detections 4 | . 3 . 1 Full Trace Events 1 | . . . 1 Feedback Events . | . . . . Feedback Blocked . | . . . . Robot Schematics Acquired . | . . . . Robots Built . | . . . . Matter . | . . . . Time . | . . . . Total Robot Build Rating . | . . . . Part Schematics Acquired . | . . . . Parts Built . | . . . . Matter . | . . . . Time . | . . . . Total Part Build Rating . | . . . . Parts Repaired . | . . . . Time . | . . . . Parts Recycled 2 | . 1 . 1 Recycled Matter 47 | . . . 47 Retrieved Matter 47 | . . . 47 Retrieved Components . | . . . . Parts Scanalyzed . | . . . . Part Schematics Acquired . | . . . . Parts Damaged . | . . . . Bothacking | -11 -10 -10 -9 ------------ Run | Scr Mat Min Mat Used RIF Installer . | . . . . Robots Hacked . | . . . . Non-combat . | . . . . Combat . | . . . . Robot Hacks Applied . | . . . . Relay Couplers Released . | . . . . Robots Rewired . | . . . . Allies Hacked . | . . . . Hacks Repelled . | . . . . Allies | -11 -10 -10 -9 -------- Run | Scr Mat Min Mat Total Allies . | . . . . Largest Group . | . . . . Highest-Rated Group . | . . . . Highest-Rated Ally . | . . . . Total Orders . | . . . . Ally Attacks . | . . . . Total Damage . | . . . . Kills . | . . . . Allies Corrupted . | . . . . Allies Melted . | . . . . Intel | -11 -10 -10 -9 ------- Run | Scr Mat Min Mat Robot Analysis Total . | . . . . Derelict Logs Recovered 1 | . . 1 . Drone Launches . | . . . . Drone Recoveries . | . . . . Exploration | -11 -10 -10 -9 ------------- Run | Scr Mat Min Mat Turns Passed 1093 | 106 451 304 232 Spaces Moved 686 | 79 273 210 124 Core 33 | 17 . 4 12 Treads . | . . . . Legs 630 | 62 273 206 89 Wheels . | . . . . Hover 23 | . . . 23 Flight . | . . . . Fastest Speed 50 | 50 120 120 50 Average Speed 117 | 104 120 121 110 Slowest Speed 200 | 120 120 200 150 Overloaded Moves . | . . . . Propulsion Burnouts . | . . . . Robots Hopped . | . . . . Cave-ins Triggered . | . . . . Exploration Rate (%) 28 | 6 45 52 10 Regions Visited 3 Branch Regions 1 Pre-discovered Areas . | . . . . Known Exits Taken . | . . . . Unknown Exits Taken 3 | 1 1 1 . Scrap Searched 2 | . . 2 . Spaces Dug . | . . . . Terrain Destroyed 54 | . 4 38 12 Melee . | . . . . Projectile . | . . . . AOE 54 | . 4 38 12 Terrain Rammed . | . . . . Walls Destroyed . | . . . . Machines Disabled . | . . . . Actions | -11 -10 -10 -9 --------- Run | Scr Mat Min Mat Total 872 | 95 343 252 182 Wait 39 | . 17 18 4 Move 683 | 78 272 209 124 Hop . | . . . . Pick Up 31 | 8 8 6 9 Fast Attach . | . . . . Attach 23 | 5 3 6 9 Detach 4 | . . . 4 Swap 4 | . 2 . 2 Drop 10 | . 3 7 . Fire 77 | 4 38 6 29 Melee . | . . . . Ram 1 | . . . 1 Kick . | . . . . Crush . | . . . . Escape Stasis . | . . . . Rewire . | . . . . Trap . | . . . . Miscellaneous . | . . . . Route ------- -11/Scrapyard -10/Materials -10/Mines -9/Materials History --------- Turn | Location | Event 2 | -11/Scrapyard | Met Revision 17 65 | -11/Scrapyard | Discovered new exit (range 8) 107 | -11/Scrapyard | Entered Materials 329 | -10/Materials | Build established: Mutant 417 | -10/Materials | Discovered new exit (range 16) 558 | -10/Materials | Entered Mines 579 | -10/Mines | Learned Materials non-interactive machine intel 604 | -10/Mines | Met a Derelict bent on vengeance 846 | -10/Mines | Discovered new exit (range 11) 862 | -10/Mines | Entered Materials 862 | -9/Materials | Evolved 2 slots: Power x1, Weapon x1 863 | -9/Materials | Loaded intel: 52 non-interactive machine locations 1019 | -9/Materials | Lost 7 parts (2p1n1u3w) 1053 | -9/Materials | Core integrity fell below 50% 1077 | -9/Materials | Core integrity fell below 20% 1083 | -9/Materials | Lost 3 parts (1n2w) 1094 | -9/Materials | Destroyed by G-34 Mercenary with Small Laser Last Messages --------------- Electrolysis Chamber disabled. G-34 Mercenary destroyed. Lgt. Cannon destroyed. G-34 Mercenary destroyed. G-34 Mercenary knocked back. Aluminum Leg destroyed. Acquired 12 matter. G-34 Mercenary knocked back. Acquired 25 matter. Imp. Light Cannon destroyed. Acquired Aluminum Leg. Acquired 46 matter. Acquired 40 matter. K-01 Serf collects debris. Acquired Ion Engine. K-01 Serf collects debris. Slammed into O-16 Technician. Acquired Med. Armor Plating. Imp. Hover Unit destroyed. Discarded Seismic Analyzer. Map ----- +----------------------------------------------------+ | ?????????????????????????????????????????????????? | | ?????????????????????????????????????????????????? | | ?????????????????????????????????????????????????? | | ?????????????????????????????????????????????????? | | ???????????????????????????????????"?????????????? | | ??????????????????????????????????"""????????????? | | ??????????????????????????????????"""????????????? | | ??????????????????????????????????"""????????????? | | ????"""??????"""??????????????????""?????????????? | | ????"""?????"""""?????????????????"""#???????????? | | ????"""?????""""" ????????????? ""#????######## | | ????????? ?""""" ??????????? """?????# | | ???????# ??""" ?????????? "??????#" | | ???????# ???? #?????????? ???????#T | | ???????# ??? #??########+#####????#" | | ???????# """ #??# #????# | | ???????# """"" #??# """ """ [ #????# "" | | ???????# """"" #??# "Y" """ #????# """ ! | | ???????# """"" #??# """ #????# """[ [ | | ????#### """ #??# ! ###### = | | ????? ########+####+### ##+##### | | ?????? ag #?? | | ????????? g #?? | | ???????????# g###/####### ######?? | | ???????????# #s ss #??##+###??????? | | ""?????????# @ s #??????????????? | | ""?????????# ### ## ! #??????????????? | | ""?????????########+#####+## ! ! #??????????????? | | ?????????????# ## !! #??????????????? | | ""???????????# """ """"" ## #??????????????? | | ""???????????# """ ""T"" ########??????????????? | | ""???????????# """ ##?????????????????????? | | ?????????????# #?????????????????????? | | ?????????????######### ###?????????????????????? | | | | | | | | | | | | | | | | | | | | | | | | | | | | | | | | | +----------------------------------------------------+ Best States ------------- Heat Dissipation 28 Energy Generation 15 Energy Capacity 275 Matter Stores 342 Matter Capacity 600 Sight Range 16 Terrain Scan Density 60 Armor Coverage 225 Evasion (%) 53 Item Schematics ----------------- None Robot Schematics ------------------ None Fabricated ------------ Nothing Alien Tech Used ----------------- None Achievements -------------- Crack Shot One Hack Too Far Uninvited Guest Challenges ------------ None Game ------ Seed DecoyBombRedistributor Manual? 0 Play Time 00:21:29 Cumulative 0.9 hours Start 2020.09.15 @ 17:17:12 End 2020.09.15 @ 17:37:06 Sessions 1 Manual Loads 0 Difficulty Rogue Special Mode None Game No. 2 Rogue 2 Adventurer 0 Explorer 0 Win Type - Total 0 Types 0/0/0/0/0/0/0/0/0 Lore% 0 Gallery% 2 Achievement% 2 Wizard Run 0 Options --------- ASCII 0 Keyboard 0 Movement Mouse Keybinds 0 Fullscreen 1 Font 18/SmallcapsGlow Map View 76x50 Tactical HUD 0 Map Filters NONE Filters NONE Steam 1 RUN: f77e207a-5aba-4c8d-aeb1-c27c5a82db79